[Event "December 19 Early 2023"]
[Site "https://www.chess.com"]
[Date "2023.12.19"]
[Round "1"]
[White "Bazilius, Augustinas"]
[Black "Rustemov, Alexander"]
[Result "1-0"]
[Board "82"]
[TimeControl "180+1"]
[WhiteFideId "12832251"]
[BlackFideId "4119002"]
[WhiteElo "2082"]
[BlackElo "2801"]
[WhiteTeam "LTU"]
[BlackTeam "RUS"]
[WhiteClock "0:00:04"]
[BlackClock "0:00:00"]

1. d4 {[%clk 0:02:57]}  g6 {[%clk 0:02:58]} 2. c4 {[%clk 0:02:58]}  Bg7 {[%clk 0:02:58]} 3. Nf3 {[%clk 0:02:58]}  c5 {[%clk 0:02:58]} 4. d5 {[%clk 0:02:57]}  f5 {[%clk 0:02:58]} 5. g3 {[%clk 0:02:56]}  d6 {[%clk 0:02:58]} 6. Bg2 {[%clk 0:02:57]}  Nf6 {[%clk 0:02:59]} 7. h4 {[%clk 0:02:56]}  O-O {[%clk 0:02:55]} 8. Nc3 {[%clk 0:02:55]}  Na6 {[%clk 0:02:54]} 9. Ng5 {[%clk 0:02:50]}  Nc7 {[%clk 0:02:50]} 10. e4 {[%clk 0:02:47]}  h6 {[%clk 0:02:49]} 11. Nh3 {[%clk 0:02:08]}  Qe8 {[%clk 0:02:42]} 12. Nf4 {[%clk 0:02:06]}  Qf7 {[%clk 0:02:38]} 13. h5 {[%clk 0:02:00]}  g5 {[%clk 0:02:32]} 14. Ng6 {[%clk 0:02:00]}  Re8 {[%clk 0:02:26]} 15. e5 {[%clk 0:02:00]}  Ng4 {[%clk 0:02:25]} 16. e6 {[%clk 0:01:58]}  Qf6 {[%clk 0:02:24]} 17. a4 {[%clk 0:01:53]}  b6 {[%clk 0:02:22]} 18. Qe2 {[%clk 0:01:52]}  a6 {[%clk 0:02:20]} 19. f3 {[%clk 0:01:48]}  Ne5 {[%clk 0:02:18]} 20. f4 {[%clk 0:01:48]}  Nxg6 {[%clk 0:02:15]} 21. hxg6 {[%clk 0:01:48]}  g4 {[%clk 0:02:15]} 22. Nd1 {[%clk 0:01:43]}  Rb8 {[%clk 0:02:10]} 23. Bd2 {[%clk 0:01:42]}  Qxg6 {[%clk 0:02:07]} 24. Bc3 {[%clk 0:01:38]}  b5 {[%clk 0:01:59]} 25. Bxg7 {[%clk 0:01:35]}  Qxg7 {[%clk 0:01:54]} 26. Ne3 {[%clk 0:01:35]}  Rf8 {[%clk 0:01:53]} 27. Qc2 {[%clk 0:01:32]}  bxc4 {[%clk 0:01:49]} 28. Nxf5 {[%clk 0:01:30]}  Rxb2 {[%clk 0:01:37]} 29. Nxh6+ {[%clk 0:01:22]}  Qxh6 {[%clk 0:01:36]} 30. Qxb2 {[%clk 0:01:22]}  Qg7 {[%clk 0:01:31]} 31. Qxg7+ {[%clk 0:01:19]}  Kxg7 {[%clk 0:01:32]} 32. O-O-O {[%clk 0:01:17]}  Bb7 {[%clk 0:01:29]} 33. Kc2 {[%clk 0:01:17]}  Rf5 {[%clk 0:01:28]} 34. Rh4 {[%clk 0:01:13]}  Bxd5 {[%clk 0:01:26]} 35. Rxg4+ {[%clk 0:01:12]}  Kf6 {[%clk 0:01:26]} 36. Bxd5 {[%clk 0:01:06]}  Nxd5 {[%clk 0:01:27]} 37. Re1 {[%clk 0:01:00]}  Rh5 {[%clk 0:01:17]} 38. Rh4 {[%clk 0:00:55]}  Rxh4 {[%clk 0:00:52]} 39. gxh4 {[%clk 0:00:55]}  Kf5 {[%clk 0:00:49]} 40. h5 {[%clk 0:00:53]}  Nf6 {[%clk 0:00:50]} 41. Rh1 {[%clk 0:00:50]}  d5 {[%clk 0:00:47]} 42. h6 {[%clk 0:00:50]}  Nh7 {[%clk 0:00:47]} 43. Rg1 {[%clk 0:00:48]}  Nf6 {[%clk 0:00:39]} 44. Rg7 {[%clk 0:00:49]}  d4 {[%clk 0:00:37]} 45. h7 {[%clk 0:00:47]}  d3+ {[%clk 0:00:37]} 46. Kc3 {[%clk 0:00:39]}  Nd5+ {[%clk 0:00:20]} 47. Kxc4 {[%clk 0:00:32]}  d2 {[%clk 0:00:21]} 48. h8=Q {[%clk 0:00:30]}  d1=Q {[%clk 0:00:20]} 49. Rg5+ {[%clk 0:00:14]}  Ke4 {[%clk 0:00:11]} 50. Re5+ {[%clk 0:00:13]}  Kxf4 {[%clk 0:00:09]} 51. Qh2+ {[%clk 0:00:13]}  Kg4 {[%clk 0:00:07]} 52. Qg2+ {[%clk 0:00:11]}  Kf4 {[%clk 0:00:06]} 53. Qe4+ {[%clk 0:00:09]}  Kg3 {[%clk 0:00:06]} 54. Rg5+ {[%clk 0:00:09]}  Kf2 {[%clk 0:00:04]} 55. Qg2+ {[%clk 0:00:05]}  Ke3 {[%clk 0:00:03]} 56. Re5+ {[%clk 0:00:05]}  Kf4 {[%clk 0:00:03]} 57. Qe4+ {[%clk 0:00:04]}  Kg3 {[%clk 0:00:04]} 58. Rg5+ {[%clk 0:00:05]}  Kf2 {[%clk 0:00:04]} 59. Rg2+ {[%clk 0:00:05]}  Kf1 {[%clk 0:00:04]} 60. Rg3 {[%clk 0:00:01]}  Qxa4+ {[%clk 0:00:04]} 61. Kxd5 {[%clk 0:00:01]}  Qa2+ {[%clk 0:00:02]} 62. Ke5 {[%clk 0:00:01]}  Qb2+ {[%clk 0:00:02]} 63. Kf5 {[%clk 0:00:02]}  Qf6+ {[%clk 0:00:02]} 64. Kg4 {[%clk 0:00:02]}  Qg7+ {[%clk 0:00:02]} 65. Kf3 {[%clk 0:00:03]}  Qf6+ {[%clk 0:00:02]} 66. Qf4 {[%clk 0:00:03]}  Qc3+ {[%clk 0:00:02]} 67. Kg4+ {[%clk 0:00:03]}  Ke2 {[%clk 0:00:01]} 68. Rxc3 {[%clk 0:00:04]}  c4 {[%clk 0:00:00]} 69. Qe3+ {[%clk 0:00:04]} 1-0

[Event "December 19 Early 2023"]
[Site "https://www.chess.com"]
[Date "2023.12.19"]
[Round "1"]
[White "Garcia Ramos, Daniel"]
[Black "Sahin, Sarp"]
[Result "1-0"]
[Board "83"]
[TimeControl "180+1"]
[WhiteFideId "32010311"]
[BlackFideId "51605066"]
[WhiteElo "2363"]
[BlackElo "1775"]
[WhiteTeam "ESP"]
[BlackTeam "TUR"]
[WhiteClock "0:00:31"]
[BlackClock "0:00:00"]

1. e4 {[%clk 0:03:00]}  c6 {[%clk 0:02:21]} 2. d4 {[%clk 0:02:58]}  d5 {[%clk 0:02:20]} 3. e5 {[%clk 0:02:58]}  Bf5 {[%clk 0:02:18]} 4. Nf3 {[%clk 0:02:58]}  e6 {[%clk 0:02:12]} 5. Be2 {[%clk 0:02:57]}  c5 {[%clk 0:02:11]} 6. Be3 {[%clk 0:02:56]}  cxd4 {[%clk 0:02:09]} 7. Nxd4 {[%clk 0:02:56]}  Ne7 {[%clk 0:02:10]} 8. c4 {[%clk 0:02:48]}  Nbc6 {[%clk 0:01:55]} 9. cxd5 {[%clk 0:02:37]}  Nxd5 {[%clk 0:01:48]} 10. Nxf5 {[%clk 0:02:22]}  exf5 {[%clk 0:01:44]} 11. Bd2 {[%clk 0:02:02]}  Nxe5 {[%clk 0:01:40]} 12. O-O {[%clk 0:01:58]}  Be7 {[%clk 0:01:38]} 13. Bb5+ {[%clk 0:01:53]}  Nc6 {[%clk 0:01:35]} 14. Qc2 {[%clk 0:01:47]}  Qd7 {[%clk 0:01:31]} 15. Nc3 {[%clk 0:01:42]}  O-O {[%clk 0:01:30]} 16. Rad1 {[%clk 0:01:41]}  Nxc3 {[%clk 0:01:11]} 17. Bxc3 {[%clk 0:01:39]}  Qc7 {[%clk 0:01:06]} 18. Qxf5 {[%clk 0:01:34]}  a6 {[%clk 0:01:03]} 19. Rd7 {[%clk 0:01:29]}  Qc8 {[%clk 0:00:54]} 20. Bxc6 {[%clk 0:00:56]}  bxc6 {[%clk 0:00:51]} 21. Qg4 {[%clk 0:00:57]}  f6 {[%clk 0:00:48]} 22. Qc4+ {[%clk 0:00:55]}  Kh8 {[%clk 0:00:39]} 23. Rxe7 {[%clk 0:00:55]}  Qf5 {[%clk 0:00:38]} 24. Rfe1 {[%clk 0:00:52]}  Rad8 {[%clk 0:00:31]} 25. h3 {[%clk 0:00:51]}  Qc2 {[%clk 0:00:27]} 26. Rxg7 {[%clk 0:00:45]}  Rd1 {[%clk 0:00:20]} 27. Re7 {[%clk 0:00:42]}  Rd2 {[%clk 0:00:16]} 28. Qf4 {[%clk 0:00:35]}  Qg6 {[%clk 0:00:00]} 29. Bxd2 {[%clk 0:00:31]} 1-0

[Event "December 19 Early 2023"]
[Site "https://www.chess.com"]
[Date "2023.12.19"]
[Round "1"]
[White "Porozhnyak, Maya"]
[Black "Yeremyan, Alen"]
[Result "1/2-1/2"]
[Board "86"]
[TimeControl "180+1"]
[WhiteFideId "34115843"]
[BlackFideId "13308998"]
[WhiteElo "1932"]
[BlackElo "2160"]
[WhiteTeam "RUS"]
[BlackTeam "ARM"]
[WhiteClock "0:00:13"]
[BlackClock "0:00:17"]

1. e4 {[%clk 0:02:59]}  Nf6 {[%clk 0:02:59]} 2. Nc3 {[%clk 0:02:58]}  d5 {[%clk 0:02:59]} 3. exd5 {[%clk 0:02:58]}  Nxd5 {[%clk 0:02:59]} 4. Bc4 {[%clk 0:02:58]}  Nb6 {[%clk 0:03:00]} 5. Bb3 {[%clk 0:02:58]}  Nc6 {[%clk 0:03:01]} 6. a3 {[%clk 0:02:57]}  g6 {[%clk 0:03:01]} 7. Nf3 {[%clk 0:02:57]}  Bg7 {[%clk 0:03:01]} 8. O-O {[%clk 0:02:57]}  O-O {[%clk 0:03:02]} 9. Re1 {[%clk 0:02:56]}  e5 {[%clk 0:03:03]} 10. h3 {[%clk 0:02:56]}  h6 {[%clk 0:03:02]} 11. d3 {[%clk 0:02:48]}  Kh7 {[%clk 0:03:01]} 12. Be3 {[%clk 0:02:38]}  f5 {[%clk 0:03:01]} 13. Qe2 {[%clk 0:02:39]}  Bd7 {[%clk 0:02:58]} 14. Rad1 {[%clk 0:02:38]}  Qf6 {[%clk 0:02:58]} 15. Nd5 {[%clk 0:02:35]}  Nxd5 {[%clk 0:02:56]} 16. Bxd5 {[%clk 0:02:36]}  Qd6 {[%clk 0:02:55]} 17. Ba2 {[%clk 0:02:29]}  Rae8 {[%clk 0:02:55]} 18. b4 {[%clk 0:02:24]}  b6 {[%clk 0:02:51]} 19. c4 {[%clk 0:02:20]}  Nd4 {[%clk 0:02:41]} 20. Bxd4 {[%clk 0:02:15]}  exd4 {[%clk 0:02:42]} 21. Qc2 {[%clk 0:02:07]}  c5 {[%clk 0:02:42]} 22. b5 {[%clk 0:02:05]}  Bc8 {[%clk 0:02:41]} 23. Rxe8 {[%clk 0:02:01]}  Rxe8 {[%clk 0:02:42]} 24. Re1 {[%clk 0:02:02]}  Rxe1+ {[%clk 0:02:39]} 25. Nxe1 {[%clk 0:02:03]}  Qe7 {[%clk 0:02:40]} 26. Qd2 {[%clk 0:01:59]}  Bb7 {[%clk 0:02:39]} 27. Bb3 {[%clk 0:01:59]}  Be5 {[%clk 0:02:39]} 28. Nc2 {[%clk 0:01:43]}  Kg7 {[%clk 0:02:31]} 29. Qe1 {[%clk 0:01:40]}  Qf6 {[%clk 0:02:23]} 30. a4 {[%clk 0:01:38]}  Kf7 {[%clk 0:02:16]} 31. a5 {[%clk 0:01:35]}  Bc7 {[%clk 0:02:16]} 32. a6 {[%clk 0:01:27]}  Bc8 {[%clk 0:02:10]} 33. g3 {[%clk 0:01:25]}  f4 {[%clk 0:02:08]} 34. g4 {[%clk 0:01:24]}  h5 {[%clk 0:02:05]} 35. f3 {[%clk 0:01:23]}  hxg4 {[%clk 0:02:05]} 36. hxg4 {[%clk 0:01:20]}  Be6 {[%clk 0:02:04]} 37. Kg2 {[%clk 0:01:12]}  Qh8 {[%clk 0:01:53]} 38. Qh1 {[%clk 0:01:08]}  Qe5 {[%clk 0:01:24]} 39. Qe1 {[%clk 0:00:55]}  Qg5 {[%clk 0:01:21]} 40. Qe4 {[%clk 0:00:51]}  Bd8 {[%clk 0:00:44]} 41. Ne1 {[%clk 0:00:34]}  Be7 {[%clk 0:00:44]} 42. Bd1 {[%clk 0:00:32]}  Bd6 {[%clk 0:00:39]} 43. Qb7+ {[%clk 0:00:31]}  Kf6 {[%clk 0:00:36]} 44. Qh7 {[%clk 0:00:29]}  Bf7 {[%clk 0:00:30]} 45. Qh8+ {[%clk 0:00:27]}  Ke7 {[%clk 0:00:30]} 46. Kf1 {[%clk 0:00:25]}  Qe5 {[%clk 0:00:25]} 47. Qxe5+ {[%clk 0:00:25]}  Bxe5 {[%clk 0:00:25]} 48. Ng2 {[%clk 0:00:26]}  Kf6 {[%clk 0:00:24]} 49. Kg1 {[%clk 0:00:21]}  Kg5 {[%clk 0:00:24]} 50. Kh2 {[%clk 0:00:22]}  Be6 {[%clk 0:00:24]} 51. Kh3 {[%clk 0:00:22]}  Bd7 {[%clk 0:00:24]} 52. Be2 {[%clk 0:00:22]}  Be6 {[%clk 0:00:20]} 53. Ne1 {[%clk 0:00:14]}  Kf6 {[%clk 0:00:19]} 54. Kh4 {[%clk 0:00:13]}  g5+ {[%clk 0:00:19]} 55. Kh3 {[%clk 0:00:13]}  Bd7 {[%clk 0:00:19]} 56. Nc2 {[%clk 0:00:13]}  Ke6 {[%clk 0:00:20]} 57. Kg2 {[%clk 0:00:12]}  Kd6 {[%clk 0:00:20]} 58. Na3 {[%clk 0:00:12]}  Be6 {[%clk 0:00:20]} 59. Kf2 {[%clk 0:00:12]}  Bf6 {[%clk 0:00:20]} 60. Kg2 {[%clk 0:00:13]}  Bd8 {[%clk 0:00:21]} 61. Kf2 {[%clk 0:00:13]}  Ke5 {[%clk 0:00:22]} 62. Kg2 {[%clk 0:00:14]}  Bf6 {[%clk 0:00:17]} 63. Kf2 {[%clk 0:00:13]} 1/2-1/2

[Event "December 19 Early 2023"]
[Site "https://www.chess.com"]
[Date "2023.12.19"]
[Round "1"]
[White "Postny, Evgeny"]
[Black "Zeneli, Klendi"]
[Result "0-1"]
[Board "87"]
[TimeControl "180+1"]
[WhiteFideId "2804344"]
[BlackFideId "4706609"]
[WhiteElo "2505"]
[BlackElo "1974"]
[WhiteTeam "ISR"]
[BlackTeam "ALB"]
[WhiteClock "0:00:00"]
[BlackClock "0:00:07"]

1. e4 {[%clk 0:03:00]}  e5 {[%clk 0:02:59]} 2. Nf3 {[%clk 0:03:00]}  Nc6 {[%clk 0:02:59]} 3. Bc4 {[%clk 0:03:01]}  Nf6 {[%clk 0:02:59]} 4. d3 {[%clk 0:03:00]}  Bc5 {[%clk 0:03:00]} 5. c3 {[%clk 0:02:59]}  d6 {[%clk 0:03:00]} 6. O-O {[%clk 0:02:57]}  a6 {[%clk 0:02:59]} 7. a4 {[%clk 0:02:56]}  Ba7 {[%clk 0:02:58]} 8. Bg5 {[%clk 0:02:53]}  h6 {[%clk 0:02:57]} 9. Bh4 {[%clk 0:02:53]}  O-O {[%clk 0:02:55]} 10. Nbd2 {[%clk 0:02:51]}  Be6 {[%clk 0:02:53]} 11. Re1 {[%clk 0:02:48]}  g5 {[%clk 0:02:44]} 12. Nxg5 {[%clk 0:02:37]}  hxg5 {[%clk 0:02:45]} 13. Bxg5 {[%clk 0:02:38]}  Kg7 {[%clk 0:02:37]} 14. Qf3 {[%clk 0:02:37]}  Rh8 {[%clk 0:02:22]} 15. h4 {[%clk 0:02:21]}  Rh6 {[%clk 0:01:43]} 16. Nf1 {[%clk 0:02:06]}  Rg6 {[%clk 0:01:40]} 17. Ne3 {[%clk 0:01:47]}  Rxg5 {[%clk 0:01:16]} 18. hxg5 {[%clk 0:01:46]}  Nh7 {[%clk 0:01:16]} 19. g6 {[%clk 0:01:23]}  Ng5 {[%clk 0:01:16]} 20. Qg3 {[%clk 0:01:16]}  Bxc4 {[%clk 0:01:09]} 21. Nf5+ {[%clk 0:01:09]}  Kf6 {[%clk 0:01:04]} 22. dxc4 {[%clk 0:01:03]}  fxg6 {[%clk 0:01:04]} 23. Ne3 {[%clk 0:00:53]}  Kg7 {[%clk 0:00:51]} 24. Qg4 {[%clk 0:00:41]}  Qf6 {[%clk 0:00:45]} 25. Re2 {[%clk 0:00:35]}  Rh8 {[%clk 0:00:44]} 26. Qd7+ {[%clk 0:00:24]}  Nf7 {[%clk 0:00:38]} 27. b4 {[%clk 0:00:17]}  Qh4 {[%clk 0:00:37]} 28. Qh3 {[%clk 0:00:11]}  Qxe4 {[%clk 0:00:35]} 29. Qg3 {[%clk 0:00:08]}  Qf4 {[%clk 0:00:26]} 30. Qxf4 {[%clk 0:00:07]}  exf4 {[%clk 0:00:26]} 31. Nd5 {[%clk 0:00:08]}  Nce5 {[%clk 0:00:26]} 32. Nxf4 {[%clk 0:00:07]}  Nxc4 {[%clk 0:00:22]} 33. Ne6+ {[%clk 0:00:07]}  Kf6 {[%clk 0:00:21]} 34. Nxc7 {[%clk 0:00:08]}  Nfe5 {[%clk 0:00:20]} 35. Nd5+ {[%clk 0:00:08]}  Kg7 {[%clk 0:00:19]} 36. Rd1 {[%clk 0:00:09]}  Ng4 {[%clk 0:00:17]} 37. Nf4 {[%clk 0:00:05]}  Bxf2+ {[%clk 0:00:10]} 38. Rxf2 {[%clk 0:00:05]}  Rh1+ {[%clk 0:00:10]} 39. Kxh1 {[%clk 0:00:06]}  Nxf2+ {[%clk 0:00:11]} 40. Kg1 {[%clk 0:00:06]}  Nxd1 {[%clk 0:00:12]} 41. Nd5 {[%clk 0:00:05]}  Nce3 {[%clk 0:00:10]} 42. Ne7 {[%clk 0:00:02]}  Nxc3 {[%clk 0:00:10]} 43. Nc8 {[%clk 0:00:02]}  d5 {[%clk 0:00:10]} 44. Kf2 {[%clk 0:00:02]}  Nc4 {[%clk 0:00:09]} 45. Kf3 {[%clk 0:00:02]}  Nxa4 {[%clk 0:00:09]} 46. Ne7 {[%clk 0:00:02]}  d4 {[%clk 0:00:09]} 47. Ke4 {[%clk 0:00:02]}  Nd6+ {[%clk 0:00:06]} 48. Kxd4 {[%clk 0:00:02]}  Nf5+ {[%clk 0:00:06]} 49. Nxf5+ {[%clk 0:00:02]}  gxf5 {[%clk 0:00:07]} 50. Ke5 {[%clk 0:00:00]}  Kg6 {[%clk 0:00:07]} 0-1

[Event "December 19 Early 2023"]
[Site "https://www.chess.com"]
[Date "2023.12.19"]
[Round "1"]
[White "Lopusiewicz, Piotr"]
[Black "Samunenkov, Ihor"]
[Result "0-1"]
[Board "88"]
[TimeControl "180+1"]
[WhiteFideId "1116029"]
[BlackFideId "14187086"]
[WhiteElo "2286"]
[BlackElo "2473"]
[WhiteTeam "POL"]
[BlackTeam "UKR"]
[WhiteClock "0:00:37"]
[BlackClock "0:00:06"]

1. d4 {[%clk 0:03:00]}  Nf6 {[%clk 0:02:57]} 2. c4 {[%clk 0:03:01]}  e6 {[%clk 0:02:57]} 3. Nf3 {[%clk 0:03:01]}  d5 {[%clk 0:02:56]} 4. Nc3 {[%clk 0:03:01]}  a6 {[%clk 0:02:56]} 5. cxd5 {[%clk 0:03:01]}  exd5 {[%clk 0:02:57]} 6. Bf4 {[%clk 0:03:01]}  Bd6 {[%clk 0:02:57]} 7. Be5 {[%clk 0:03:01]}  O-O {[%clk 0:02:56]} 8. Bxf6 {[%clk 0:03:01]}  Qxf6 {[%clk 0:02:54]} 9. Nxd5 {[%clk 0:03:01]}  Qd8 {[%clk 0:02:48]} 10. Nc3 {[%clk 0:03:01]}  Nc6 {[%clk 0:02:42]} 11. e3 {[%clk 0:02:59]}  Bg4 {[%clk 0:02:41]} 12. h3 {[%clk 0:02:57]}  Bh5 {[%clk 0:02:41]} 13. Be2 {[%clk 0:02:52]}  Re8 {[%clk 0:02:40]} 14. O-O {[%clk 0:02:50]}  Qe7 {[%clk 0:02:11]} 15. Ne5 {[%clk 0:02:40]}  Nxe5 {[%clk 0:01:44]} 16. Bxh5 {[%clk 0:02:23]}  Nc4 {[%clk 0:01:44]} 17. b3 {[%clk 0:02:11]}  Nxe3 {[%clk 0:01:41]} 18. fxe3 {[%clk 0:01:52]}  Qxe3+ {[%clk 0:01:41]} 19. Kh1 {[%clk 0:01:52]}  Qg3 {[%clk 0:01:34]} 20. Bxf7+ {[%clk 0:01:45]}  Kh8 {[%clk 0:01:34]} 21. Kg1 {[%clk 0:01:43]}  Qh2+ {[%clk 0:00:38]} 22. Kf2 {[%clk 0:01:43]}  Re7 {[%clk 0:00:28]} 23. Qf3 {[%clk 0:01:28]}  Bg3+ {[%clk 0:00:21]} 24. Qxg3 {[%clk 0:01:26]}  Rxf7+ {[%clk 0:00:21]} 25. Qf3 {[%clk 0:01:26]}  Rxf3+ {[%clk 0:00:22]} 26. Kxf3 {[%clk 0:01:27]}  Rf8+ {[%clk 0:00:21]} 27. Ke3 {[%clk 0:01:24]}  Qg3+ {[%clk 0:00:21]} 28. Rf3 {[%clk 0:01:22]}  Rxf3+ {[%clk 0:00:19]} 29. gxf3 {[%clk 0:01:22]}  Qxh3 {[%clk 0:00:20]} 30. Re1 {[%clk 0:01:20]}  h6 {[%clk 0:00:19]} 31. Ne4 {[%clk 0:01:19]}  Qg2 {[%clk 0:00:18]} 32. Re2 {[%clk 0:01:19]}  Qg1+ {[%clk 0:00:18]} 33. Kd3 {[%clk 0:01:16]}  c6 {[%clk 0:00:17]} 34. Nc5 {[%clk 0:01:15]}  Qd1+ {[%clk 0:00:16]} 35. Ke3 {[%clk 0:01:14]}  Qc1+ {[%clk 0:00:13]} 36. Kf2 {[%clk 0:01:12]}  Qf4 {[%clk 0:00:10]} 37. Ne6 {[%clk 0:01:06]}  Qf6 {[%clk 0:00:09]} 38. Re4 {[%clk 0:01:04]}  Kh7 {[%clk 0:00:09]} 39. Ke3 {[%clk 0:00:57]}  Kg8 {[%clk 0:00:07]} 40. Nc5 {[%clk 0:00:53]}  Qg5+ {[%clk 0:00:07]} 41. Kd3 {[%clk 0:00:51]}  h5 {[%clk 0:00:06]} 42. Nxb7 {[%clk 0:00:43]}  h4 {[%clk 0:00:06]} 43. Nd6 {[%clk 0:00:43]}  h3 {[%clk 0:00:05]} 44. Re8+ {[%clk 0:00:44]}  Kh7 {[%clk 0:00:05]} 45. Rh8+ {[%clk 0:00:44]}  Kxh8 {[%clk 0:00:03]} 46. Nf7+ {[%clk 0:00:45]}  Kg8 {[%clk 0:00:04]} 47. Nxg5 {[%clk 0:00:45]}  h2 {[%clk 0:00:05]} 48. Ne4 {[%clk 0:00:44]}  h1=Q {[%clk 0:00:05]} 49. Kc4 {[%clk 0:00:44]}  Qxf3 {[%clk 0:00:05]} 50. Nc3 {[%clk 0:00:45]}  g5 {[%clk 0:00:05]} 51. Na4 {[%clk 0:00:44]}  Qd5+ {[%clk 0:00:04]} 52. Kb4 {[%clk 0:00:44]}  g4 {[%clk 0:00:05]} 53. Nc5 {[%clk 0:00:43]}  Qxd4+ {[%clk 0:00:05]} 54. Ka3 {[%clk 0:00:41]}  Qxc5+ {[%clk 0:00:05]} 55. b4 {[%clk 0:00:37]}  Qc3+ {[%clk 0:00:06]} 0-1

[Event "December 19 Early 2023"]
[Site "https://www.chess.com"]
[Date "2023.12.19"]
[Round "1"]
[White "Zamorano, Jorge"]
[Black "Uritsky, Yonathan"]
[Result "0-1"]
[Board "89"]
[TimeControl "180+1"]
[WhiteFideId "173770"]
[BlackFideId "2825651"]
[WhiteElo "2331"]
[BlackElo "2168"]
[WhiteTeam "ARG"]
[BlackTeam "ISR"]
[WhiteClock "0:00:01"]
[BlackClock "0:00:19"]

1. d4 {[%clk 0:02:55]}  Nf6 {[%clk 0:02:59]} 2. Bf4 {[%clk 0:02:54]}  c5 {[%clk 0:02:58]} 3. e3 {[%clk 0:02:53]}  g6 {[%clk 0:02:58]} 4. Nc3 {[%clk 0:02:50]}  Bg7 {[%clk 0:02:56]} 5. h4 {[%clk 0:02:37]}  h6 {[%clk 0:02:39]} 6. Nf3 {[%clk 0:02:26]}  b6 {[%clk 0:02:38]} 7. Bc4 {[%clk 0:01:06]}  Bb7 {[%clk 0:02:34]} 8. Ne5 {[%clk 0:01:05]}  e6 {[%clk 0:02:02]} 9. Qe2 {[%clk 0:00:49]}  O-O {[%clk 0:01:59]} 10. O-O-O {[%clk 0:00:48]}  b5 {[%clk 0:02:00]} 11. Nxb5 {[%clk 0:00:47]}  d5 {[%clk 0:01:56]} 12. dxc5 {[%clk 0:00:44]}  Qa5 {[%clk 0:01:52]} 13. Bb3 {[%clk 0:00:38]}  Ne4 {[%clk 0:01:41]} 14. Nd6 {[%clk 0:00:19]}  Ba6 {[%clk 0:01:29]} 15. Qe1 {[%clk 0:00:16]}  Qxe1 {[%clk 0:01:10]} 16. Rdxe1 {[%clk 0:00:14]}  Nxc5 {[%clk 0:01:07]} 17. Rd1 {[%clk 0:00:07]}  Nbd7 {[%clk 0:00:36]} 18. Nxd7 {[%clk 0:00:06]}  Nxd7 {[%clk 0:00:37]} 19. e4 {[%clk 0:00:05]}  dxe4 {[%clk 0:00:32]} 20. Nxe4 {[%clk 0:00:05]}  Nb6 {[%clk 0:00:32]} 21. Nc5 {[%clk 0:00:05]}  Be2 {[%clk 0:00:30]} 22. Rd2 {[%clk 0:00:06]}  Bc4 {[%clk 0:00:30]} 23. Nd7 {[%clk 0:00:04]}  Nxd7 {[%clk 0:00:22]} 24. Rxd7 {[%clk 0:00:05]}  Bxb3 {[%clk 0:00:22]} 25. axb3 {[%clk 0:00:06]}  a5 {[%clk 0:00:22]} 26. Kb1 {[%clk 0:00:05]}  a4 {[%clk 0:00:18]} 27. bxa4 {[%clk 0:00:04]}  Rxa4 {[%clk 0:00:19]} 28. c3 {[%clk 0:00:01]}  Rxf4 {[%clk 0:00:19]} 0-1

[Event "December 19 Early 2023"]
[Site "https://www.chess.com"]
[Date "2023.12.19"]
[Round "1"]
[White "Onyshchuk, Volodymyr"]
[Black "Jaque Gutierrez, Matias"]
[Result "1-0"]
[Board "91"]
[TimeControl "180+1"]
[WhiteFideId "14114038"]
[BlackFideId "3426980"]
[WhiteElo "2643"]
[BlackElo "2040"]
[WhiteTeam "UKR"]
[BlackTeam "CHI"]
[WhiteClock "0:00:10"]
[BlackClock "0:00:00"]

1. e4 {[%clk 0:02:58]}  c5 {[%clk 0:02:59]} 2. Nf3 {[%clk 0:02:57]}  e6 {[%clk 0:02:59]} 3. b3 {[%clk 0:02:55]}  Nf6 {[%clk 0:02:52]} 4. e5 {[%clk 0:02:53]}  Nd5 {[%clk 0:02:53]} 5. Bb2 {[%clk 0:02:51]}  Nc6 {[%clk 0:02:49]} 6. Be2 {[%clk 0:02:47]}  d6 {[%clk 0:02:49]} 7. exd6 {[%clk 0:02:37]}  Qxd6 {[%clk 0:02:43]} 8. O-O {[%clk 0:02:34]}  Be7 {[%clk 0:02:32]} 9. Nc3 {[%clk 0:02:24]}  Nxc3 {[%clk 0:02:31]} 10. dxc3 {[%clk 0:02:20]}  O-O {[%clk 0:02:26]} 11. Qxd6 {[%clk 0:02:20]}  Bxd6 {[%clk 0:02:25]} 12. Rad1 {[%clk 0:02:21]}  Bc7 {[%clk 0:02:18]} 13. Bb5 {[%clk 0:02:15]}  Ne7 {[%clk 0:01:58]} 14. c4 {[%clk 0:01:50]}  a6 {[%clk 0:01:55]} 15. Bd7 {[%clk 0:01:45]}  Rd8 {[%clk 0:01:51]} 16. Bxc8 {[%clk 0:01:42]}  Raxc8 {[%clk 0:01:52]} 17. Rfe1 {[%clk 0:01:42]}  Nc6 {[%clk 0:01:48]} 18. Bc3 {[%clk 0:01:36]}  Nb4 {[%clk 0:01:40]} 19. Bxb4 {[%clk 0:01:34]}  cxb4 {[%clk 0:01:40]} 20. Kf1 {[%clk 0:01:34]}  Kf8 {[%clk 0:01:34]} 21. Ke2 {[%clk 0:01:30]}  f6 {[%clk 0:01:29]} 22. Rxd8+ {[%clk 0:01:22]}  Rxd8 {[%clk 0:01:28]} 23. Ra1 {[%clk 0:01:20]}  g5 {[%clk 0:01:11]} 24. Ne1 {[%clk 0:01:18]}  Be5 {[%clk 0:01:09]} 25. Rb1 {[%clk 0:01:16]}  Bc3 {[%clk 0:01:08]} 26. Nd3 {[%clk 0:01:16]}  b6 {[%clk 0:01:00]} 27. f3 {[%clk 0:01:14]}  Kf7 {[%clk 0:00:59]} 28. Rh1 {[%clk 0:01:12]}  Rd4 {[%clk 0:00:54]} 29. g4 {[%clk 0:01:03]}  h5 {[%clk 0:00:14]} 30. h4 {[%clk 0:00:49]}  hxg4 {[%clk 0:00:14]} 31. hxg5 {[%clk 0:00:49]}  gxf3+ {[%clk 0:00:13]} 32. Kxf3 {[%clk 0:00:48]}  fxg5 {[%clk 0:00:13]} 33. Rh7+ {[%clk 0:00:32]}  Kg6 {[%clk 0:00:14]} 34. Rb7 {[%clk 0:00:31]}  g4+ {[%clk 0:00:14]} 35. Kg3 {[%clk 0:00:30]}  Re4 {[%clk 0:00:06]} 36. Rxb6 {[%clk 0:00:28]}  Kf5 {[%clk 0:00:03]} 37. Rb8 {[%clk 0:00:20]}  Re3+ {[%clk 0:00:03]} 38. Kf2 {[%clk 0:00:20]}  Bd4 {[%clk 0:00:04]} 39. Rf8+ {[%clk 0:00:18]}  Kg6 {[%clk 0:00:04]} 40. Kf1 {[%clk 0:00:12]}  Rf3+ {[%clk 0:00:04]} 41. Rxf3 {[%clk 0:00:12]}  gxf3 {[%clk 0:00:05]} 42. Ne1 {[%clk 0:00:10]}  f2 {[%clk 0:00:04]} 43. Nd3 {[%clk 0:00:11]}  Kf5 {[%clk 0:00:03]} 44. Nxf2 {[%clk 0:00:10]}  Kf4 {[%clk 0:00:04]} 45. Ke2 {[%clk 0:00:10]}  e5 {[%clk 0:00:02]} 46. Nd3+ {[%clk 0:00:10]}  Ke4 {[%clk 0:00:01]} 47. Nxb4 {[%clk 0:00:11]}  Bc5 {[%clk 0:00:00]} 48. Nxa6 {[%clk 0:00:10]} 1-0